fUST/lending_fUST_20240308
["ID","MTS","AMOUNT","RATE_DAILY","PERIOD"]
[317537291,1709848239942,-170.1848002,0.00022998,2]
[317537293,1709848239951,-15440.72364066,0.00022998,2]
[317537295,1709848239960,-444.0566194,0.00022998,2]
[317537297,1709848239970,-181.65267874,0.00022998,2]
[317537299,1709848239979,-401.64000745,0.00022998,2]
[317537301,1709848239988,-8606.87493274,0.00022998,2]
[317537303,1709848239997,-194.60583292,0.00022998,2]
[317537305,1709848240007,-256.16650602,0.00022998,2]
[317537307,1709848240016,-157.12116013,0.00022998,2]
[317537309,1709848240025,-528.15312328,0.00022998,2]
[317537311,1709848240034,-170.98414437,0.00022998,2]
[317537313,1709848240043,-365.28955153,0.00022998,2]
[317537315,1709848240052,-178.55896063,0.00022998,2]
[317537317,1709848240061,-194.64830155,0.00022998,2]
[317537319,1709848240071,-201.98126229,0.00022998,2]
[317537321,1709848240080,-178.21335201,0.00022998,2]
[317537323,1709848240089,-875.30218491,0.00022998,2]
[317537324,1709848240099,-160.0,0.00022999,2]
[317537327,1709848240108,-160.0,0.00022999,2]
[317537329,1709848240118,-160.0,0.00022999,2]
[317537331,1709848240127,-297.5148009,0.00023,3]
[317537333,1709848240136,-3071064.39294234,0.00023,6]
[317538104,1709848247676,-155.02170304,0.00022998,2]
[317538106,1709848247685,-231.77829696,0.00023,6]
[317538109,1709848247696,-342.35,0.00023,6]
[317538111,1709848247707,-39000.055136,0.00023,6]
[317538113,1709848247719,-26120.41885952,0.00023,6]
[317541020,1709849438721,-186.175603,0.00019667,2]
[317541022,1709849438731,-969.78383427,0.000197,2]
[317541024,1709849438743,-5057.22884403,0.000197,2]
[317541026,1709849438752,-250.0,0.00019766,2]
[317541028,1709849438761,-254.796677,0.00019772,2]
[317541030,1709849438770,-168.909684,0.00019789,2]
[317541032,1709849438780,-193.34493299,0.0002,2]
[317541034,1709849438789,-155.02325349,0.00020894,2]
[317541036,1709849438799,-238.79913038,0.00020894,2]
[317541038,1709849438808,-155.88805604,0.00020894,2]
[317541040,1709849438817,-1605.92382438,0.00020894,2]
[317541042,1709849438827,-290.38682753,0.00020894,2]
[317541043,1709849438836,-155.02325349,0.00020894,2]
[317541045,1709849438846,-538.93657172,0.00020894,2]
[317541047,1709849438855,-179.6642469,0.00020894,2]
[317541049,1709849438864,-155.02325349,0.00020894,2]
[317541050,1709849438873,-558.12234443,0.00020894,2]
[317541051,1709849438882,-171.04775531,0.00020894,2]
[317541052,1709849438890,-1473.66141674,0.00020894,2]
[317541053,1709849438899,-328.44426746,0.000209,2]
[317541054,1709849438908,-166.509719,0.00021051,2]
[317541055,1709849438917,-4763.51594162,0.00021995,2]
[317541056,1709849438928,-42875.7063949,0.00021995,2]
[317541057,1709849438937,-1668.03514243,0.00022,2]
[317541058,1709849438947,-675.95133759,0.00022,2]
[317541059,1709849438955,-260.0,0.00022,2]
[317541060,1709849438964,-157.29568872,0.00022,2]
[317541061,1709849438973,-260.0,0.00022192,2]
[317541062,1709849438982,-200.9149876,0.00022301,2]
[317541063,1709849438991,-2552.7,0.00022453,4]
[317541064,1709849439000,-168.909684,0.00022487,2]
[317541065,1709849439009,-958.84938479,0.00022502,3]
[317541066,1709849439018,-14220.89053013,0.00022505,3]
[317541067,1709849439027,-7135.92460444,0.00022505,3]
[317541068,1709849439037,-5000.0,0.00022505,7]
[317541069,1709849439046,-4214.51201476,0.00022765,2]
[317541070,1709849439055,-306.0,0.00022767,2]
[317541071,1709849439063,-154.00961775,0.00022775,2]
[317541072,1709849439074,-275.85405135,0.00022799,2]
[317541074,1709849439084,-500.0,0.00022799,2]
[317541076,1709849439093,-329.67301219,0.00022799,2]
[317541078,1709849439103,-500.0,0.00022799,2]
[317541080,1709849439113,-500.0,0.00022799,2]
[317541082,1709849439123,-345.00963792,0.00022799,2]
[317541084,1709849439132,-499.99999999,0.00022799,2]
[317541086,1709849439142,-500.0,0.00022799,2]
[317541088,1709849439152,-500.0,0.00022799,2]
[317541090,1709849439161,-500.0,0.00022799,2]
[317541092,1709849439171,-500.0,0.00022799,2]
[317541093,1709849439180,-500.0,0.00022799,2]
[317541095,1709849439189,-500.0,0.00022799,2]
[317541097,1709849439199,-500.0,0.00022799,2]
[317541099,1709849439209,-57709.80305515,0.000228,2]
[317541101,1709849439218,-173.52457612,0.000228,6]
[317541103,1709849439228,-657.1666902,0.00022827,2]
[317541105,1709849439237,-1308.01063203,0.00022898,2]
[317541107,1709849439246,-1308.01063199,0.00022899,2]
[317541109,1709849439255,-1308.01063199,0.00022899,2]
[317541111,1709849439265,-1308.01063199,0.000229,2]
[317541113,1709849439274,-1308.01063199,0.000229,2]
[317541115,1709849439284,-32515.17765245,0.000229,2]
[317541117,1709849439293,-1771.40506744,0.00022975,2]
[317541119,1709849439302,-458.24038261,0.00022986,2]
[317541121,1709849439311,-1000.0,0.00022986,7]
[317541123,1709849439321,-309.92062372,0.00022986,2]
[317541125,1709849439333,-16895.96191158,0.00022986,3]
[317541127,1709849439342,-1104.00541272,0.00022986,2]
[317541129,1709849439352,-3814.03409253,0.00022986,3]
[317541131,1709849439361,-1000.0,0.00022986,7]
[317541134,1709849439371,-1000.0,0.00022986,7]
[317541135,1709849439381,-525.91121778,0.00022986,2]
[317541137,1709849439390,-1000.0,0.00022986,7]
[317541139,1709849439399,-8242.71882646,0.00022997,2]
[317541141,1709849439409,-1794.55023703,0.00022998,2]
[317541143,1709849439418,-253.77970631,0.00022998,2]
[317541145,1709849439427,-197.67761353,0.00022998,2]
[317541147,1709849439436,-211.0941941,0.00022998,2]
[317541149,1709849439445,-310.0372045,0.00022998,2]
[317541151,1709849439454,-155.13959305,0.00022998,2]
[317541153,1709849439464,-898.8435044,0.00022998,2]
[317541155,1709849439475,-20570.83151564,0.00022998,2]
[317541157,1709849439484,-160.80244999,0.00022998,2]
[317541159,1709849439493,-7899.56120569,0.00022998,3]
[317541161,1709849439502,-703.45953046,0.00022998,2]
[317541163,1709849439511,-155.22950553,0.00022998,2]
[317541165,1709849439520,-237.46899247,0.00022998,2]
[317541167,1709849439529,-247.09964237,0.00022998,2]
[317541169,1709849439538,-336.65324268,0.00022998,2]
[317541171,1709849439548,-3095.17066,0.00022998,2]
[317541173,1709849439557,-165.52571142,0.00022998,2]
[317541175,1709849439568,-176.31919157,0.00022998,2]
[317541177,1709849439581,-201.98126229,0.00022998,2]
[317541179,1709849439590,-15244.78488328,0.00022998,2]
[317541181,1709849439599,-194.64830155,0.00022998,2]
[317541183,1709849439609,-875.30218491,0.00022998,2]
[317541185,1709849439618,-178.21335201,0.00022998,2]
[317541187,1709849439628,-178.55896063,0.00022998,2]
[317541189,1709849439637,-365.28955153,0.00022998,2]
[317541191,1709849439647,-170.98414437,0.00022998,2]
[317541194,1709849439751,-528.15312328,0.00022998,2]
[317541195,1709849439765,-157.12116013,0.00022998,2]
[317541196,1709849439775,-256.16650602,0.00022998,2]
[317541197,1709849439785,-194.60583292,0.00022998,2]
[317541198,1709849439794,-206.60143057,0.00022998,2]
[317541199,1709849439804,-272.50112793,0.00022998,2]
[317541200,1709849439813,-201.55689597,0.00022998,2]
[317541201,1709849439823,-347.73817942,0.00022998,2]
[317541202,1709849439832,-170.1848002,0.00022998,2]
[317541203,1709849439841,-745.22315814,0.00022998,2]
[317541204,1709849439850,-8606.87493274,0.00022998,2]
[317541205,1709849439859,-1082.9643418,0.00022998,2]
[317541206,1709849439869,-186.33932523,0.00022998,2]
[317541207,1709849439878,-189.25944553,0.00022998,2]
[317541208,1709849439887,-223.79454694,0.00022998,2]
[317541209,1709849439897,-682.18594777,0.00022998,2]
[317541210,1709849439906,-306.14879242,0.00022998,2]
[317541211,1709849439916,-15440.72364066,0.00022998,2]
[317541212,1709849439925,-181.96255062,0.00022998,2]
[317541213,1709849439935,-444.0566194,0.00022998,2]
[317541214,1709849439944,-159.96362672,0.00022998,2]
[317541215,1709849439954,-401.64000745,0.00022998,2]
[317541216,1709849439964,-3175.56941218,0.00022998,2]
[317541217,1709849439974,-190.12437285,0.00022998,2]
[317541218,1709849439984,-185.13888257,0.00022998,2]
[317541219,1709849439994,-181.65267874,0.00022998,2]
[317541220,1709849440003,-1834.48436617,0.00022998,2]
[317541221,1709849440012,-365.28955153,0.00022998,2]
[317541222,1709849440021,-279.09296088,0.00022998,2]
[317541223,1709849440031,-1391.2056662,0.00022999,2]
[317541224,1709849440040,-160.0,0.00022999,2]
[317541225,1709849440050,-160.0,0.00022999,2]
[317541226,1709849440059,-160.0,0.00022999,2]
[317541227,1709849440068,-175.22144084,0.00022999,2]
[317541228,1709849440079,-297.5148009,0.00023,3]
[317541229,1709849440088,-1691565.86310341,0.00023,6]
[317541230,1709849440097,-184.20532805,0.00023,2]
[317541231,1709849440107,-174.0,0.00023,2]
[317541232,1709849440116,-175.5,0.00023,2]
[317541233,1709849440125,-175.5,0.00023,2]
[317541234,1709849440135,-221.71242091,0.00023,2]
[317541235,1709849440145,-1264087.5023532,0.00023,6]
[317541236,1709849440157,-1689.62427619,0.00023,6]
[317541237,1709849440169,-6917.39246912,0.00023,6]
[317544799,1709850631828,-176.46034309,0.00019467,2]
[317544801,1709850631837,-24890.0,0.00019541,2]
[317544802,1709850631847,-186.84796258,0.00019567,2]
[317544803,1709850631856,-174.466728,0.0001969,2]
[317544804,1709850631865,-3987.3042846,0.00019915,2]
[317544805,1709850631874,-168.909685,0.00020001,2]
[317544806,1709850631884,-250.0,0.00020017,2]
[317544807,1709850631893,-155.88805604,0.00020894,2]
[317544808,1709850631906,-155.03875969,0.00020894,2]
[317544809,1709850631916,-179.6642469,0.00020894,2]
[317544810,1709850631925,-726.56744542,0.000209,2]
[317544811,1709850631934,-3939.69127292,0.00021995,2]
[317544812,1709850631946,-1668.03514243,0.00022,2]
[317544813,1709850631955,-282.0,0.00022,2]
[317544814,1709850631964,-8242.71882646,0.00022,2]
[317544815,1709850632064,-157.29568872,0.00022,2]
[317544816,1709850632075,-282.0,0.00022192,2]
[317544817,1709850632085,-306.0,0.00022219,2]
[317544818,1709850632094,-200.8478084,0.00022219,2]
[317544819,1709850632103,-200.9149876,0.00022219,2]
[317544820,1709850632113,-200.9149876,0.00022219,2]
[317544821,1709850632123,-200.9149876,0.00022219,2]
[317544822,1709850632133,-200.9149876,0.00022219,2]
[317544823,1709850632143,-2552.7,0.00022484,4]
[317544824,1709850632154,-680.22930424,0.00022509,3]
[317544825,1709850632164,-5000.0,0.00022509,7]
[317544826,1709850632173,-18500.86343585,0.00022509,3]
[317544827,1709850632183,-766.26715904,0.00022509,3]
[317544828,1709850632192,-154.00961775,0.0002254,2]
[317544829,1709850632201,-657.1666902,0.00022634,2]
[317544830,1709850632210,-33651.40176737,0.000228,2]
[317544833,1709850637928,-1570.92564338,0.000228,2]
[317544834,1709850637984,-2531.07250731,0.000228,2]
[317544835,1709850637997,-173.52457612,0.000228,6]
[317544836,1709850638010,-1308.01063203,0.00022898,2]
[317544837,1709850638022,-275.85405135,0.00022898,2]
[317544838,1709850638034,-500.0,0.00022898,2]
[317544839,1709850638046,-329.67301219,0.00022898,2]
[317544840,1709850638058,-500.0,0.00022898,2]
[317544841,1709850638070,-500.0,0.00022898,2]
[317544842,1709850638082,-500.0,0.00022898,2]
[317544843,1709850638094,-500.0,0.00022898,2]
[317544844,1709850638107,-500.0,0.00022898,2]
[317544845,1709850638120,-495.00963792,0.00022898,2]
[317544847,1709850638133,-500.0,0.00022898,2]
[317544849,1709850638145,-500.0,0.00022898,2]
[317544851,1709850638157,-500.0,0.00022898,2]
[317544852,1709850638169,-500.0,0.00022898,2]
[317544854,1709850638181,-500.0,0.00022898,2]
[317544856,1709850638193,-500.0,0.00022898,2]
[317544858,1709850638204,-500.0,0.00022898,2]
[317544859,1709850638216,-500.0,0.00022898,2]
[317544860,1709850638227,-500.0,0.00022898,2]
[317544861,1709850638239,-500.0,0.00022898,2]
[317544862,1709850638250,-500.0,0.00022898,2]
[317544863,1709850638261,-500.0,0.00022898,2]
[317544864,1709850638274,-1308.01063199,0.00022899,2]
[317544865,1709850638285,-1308.01063199,0.00022899,2]
[317544866,1709850638298,-1308.01063199,0.000229,2]
[317544867,1709850638309,-32515.17765245,0.000229,2]
[317544868,1709850638321,-1308.01063199,0.000229,2]
[317544869,1709850638333,-1771.40506744,0.00022975,2]
[317544870,1709850638479,-1000.0,0.00022986,7]
[317544871,1709850638490,-13282.95608405,0.00022986,3]
[317544872,1709850638499,-2839.23186297,0.00022986,2]
[317544873,1709850638508,-1000.0,0.00022986,7]
[317544874,1709850638518,-4223.9904779,0.00022986,3]
[317544875,1709850638527,-725.59678629,0.00022986,3]
[317544876,1709850638536,-331.20162382,0.00022986,2]
[317544877,1709850638545,-155.35614973,0.00022998,2]
[317544878,1709850638555,-341.9319638,0.00022998,2]
[317544879,1709850638564,-859.56464863,0.00022998,2]
[317544880,1709850638574,-556.16853213,0.00022998,2]
[317544881,1709850638583,-245.98065434,0.00022998,2]
[317544882,1709850638592,-155.03875969,0.00022998,2]
[317544883,1709850638602,-161.19048717,0.00022998,2]
[317544884,1709850638612,-321.23548932,0.00022998,2]
[317544885,1709850638623,-1170.75169083,0.00022998,3]
[317544886,1709850638633,-186.33932523,0.00022998,2]
[317544887,1709850638642,-401.64000745,0.00022998,2]
[317544888,1709850638651,-444.0566194,0.00022998,2]
[317544889,1709850638661,-170.1848002,0.00022998,2]
[317544890,1709850638670,-279.09296088,0.00022998,2]
[317544891,1709850638679,-1834.48436617,0.00022998,2]
[317544892,1709850638689,-15440.72364066,0.00022998,2]
[317544893,1709850638698,-201.55689597,0.00022998,2]
[317544894,1709850638707,-189.25944553,0.00022998,2]
[317544895,1709850638716,-306.14879242,0.00022998,2]
[317544896,1709850638725,-159.96362672,0.00022998,2]
[317544897,1709850638735,-703.45953046,0.00022998,2]
[317544898,1709850638744,-745.22315814,0.00022998,2]
[317544899,1709850638754,-181.65267874,0.00022998,2]
[317544900,1709850638764,-223.79454694,0.00022998,2]
[317544901,1709850638773,-272.50112793,0.00022998,2]
[317544902,1709850638782,-1082.9643418,0.00022998,2]
[317544903,1709850638792,-682.18594777,0.00022998,2]
[317544904,1709850638801,-181.96255062,0.00022998,2]
[317544905,1709850638811,-206.60143057,0.00022998,2]
[317544906,1709850638820,-365.28955153,0.00022998,2]
[317544907,1709850638829,-185.13888257,0.00022998,2]
[317544908,1709850638839,-347.73817942,0.00022998,2]
[317544909,1709850638848,-194.60583292,0.00022998,2]
[317544910,1709850638857,-8606.87493274,0.00022998,2]
[317544911,1709850638866,-190.12437285,0.00022998,2]
[317544912,1709850638876,-157.12116013,0.00022998,2]
[317544913,1709850638887,-256.16650602,0.00022998,2]
[317544914,1709850638896,-170.98414437,0.00022998,2]
[317544915,1709850638910,-528.15312328,0.00022998,2]
[317544916,1709850638919,-178.21335201,0.00022998,2]
[317544917,1709850638930,-178.55896063,0.00022998,2]
[317544918,1709850638940,-365.28955153,0.00022998,2]
[317544919,1709850638949,-875.30218491,0.00022998,2]
[317544920,1709850638959,-194.64830155,0.00022998,2]
[317544921,1709850638969,-201.98126229,0.00022998,2]
[317544922,1709850638979,-3095.17066,0.00022998,2]
[317544923,1709850638989,-237.46899247,0.00022998,2]
[317544924,1709850638998,-176.31919157,0.00022998,2]
[317544925,1709850639008,-15244.78488328,0.00022998,2]
[317544926,1709850639017,-247.09964237,0.00022998,2]
[317544927,1709850639027,-165.52571142,0.00022998,2]
[317544928,1709850639035,-160.80244999,0.00022998,2]
[317544929,1709850639045,-155.22950553,0.00022998,2]
[317544930,1709850639054,-336.65324268,0.00022998,2]
[317544931,1709850639063,-253.77970631,0.00022998,2]
[317544932,1709850639073,-155.13959305,0.00022998,2]
[317544933,1709850639082,-1794.55023703,0.00022998,2]
[317544934,1709850639091,-211.0941941,0.00022998,2]
[317544935,1709850639100,-898.8435044,0.00022998,2]
[317544936,1709850639109,-20570.83151564,0.00022998,2]
[317544937,1709850639119,-310.0372045,0.00022998,2]
[317544938,1709850639128,-1391.2056662,0.00022999,2]
[317544939,1709850639137,-160.0,0.00022999,2]
[317544940,1709850639147,-160.0,0.00022999,2]
[317544941,1709850639157,-297.5148009,0.00023,3]
[317544942,1709850639166,-3066901.92588531,0.00023,6]
[317544965,1709850646013,-1500.28405,0.00022975,2]
[317545034,1709851832023,-168.0407288,0.00020439,2]
[317545035,1709851832032,-174.466728,0.00020506,2]
[317545036,1709851832042,-155.88805604,0.00020894,2]
[317545037,1709851832051,-179.6642469,0.00020894,2]
[317545038,1709851832060,-155.12254681,0.00020894,2]
[317545039,1709851832070,-134.05922121,0.000209,2]
[317545049,1709851832185,-350.31907573,0.000209,2]
[317545052,1709851832195,-186.175603,0.00021043,2]
[317545056,1709851832205,-1804.4046085,0.00021664,5]
[317545306,1709851840285,-3837.66432007,0.00021664,5]
[317545307,1709851840298,-4719.65012366,0.00021664,5]
[317545308,1709851840310,-36963.96095465,0.00021664,5]
[317545309,1709851840321,-2674.31999312,0.00021664,5]
[317545310,1709851840330,-1668.03514243,0.00022,2]
[317545311,1709851840339,-212.0,0.00022,2]
[317545312,1709851840348,-157.29568872,0.00022191,2]
[317545313,1709851840357,-212.0,0.00022192,2]
[317545314,1709851840366,-2159.5561303,0.00022514,3]
[317545315,1709851840375,-5000.0,0.00022514,7]
[317545316,1709851840385,-620.09137943,0.00022577,2]
[317545317,1709851840394,-306.8584861,0.00022822,2]
[317545318,1709851840403,-57709.80305515,0.00022886,2]
[317545319,1709851840412,-500.0,0.00022974,2]
[317545321,1709851840420,-500.0,0.00022974,2]
[317545323,1709851840430,-500.0,0.00022974,2]
[317545325,1709851840439,-500.0,0.00022974,2]
[317545327,1709851840449,-500.0,0.00022974,2]
[317545329,1709851840458,-500.0,0.00022974,2]
[317545330,1709851840468,-500.0,0.00022974,2]
[317545332,1709851840477,-500.0,0.00022974,2]
[317545334,1709851840486,-500.0,0.00022974,2]
[317545336,1709851840495,-500.0,0.00022974,2]
[317545338,1709851840504,-260.93708465,0.00022974,2]
[317545340,1709851840513,-500.0,0.00022974,2]
[317545342,1709851840522,-4547.26212027,0.00022975,2]
[317545344,1709851840531,-502.16484865,0.00022975,2]
[317545346,1709851840540,-155.07753877,0.00022975,2]
[317545348,1709851840550,-190.70170463,0.00022986,2]
[317545350,1709851840559,-1000.0,0.00022986,7]
[317545352,1709851840568,-5021.3803627,0.00022986,3]
[317545354,1709851840577,-2500.34937441,0.00022986,3]
[317545356,1709851840586,-151.76955889,0.00022986,3]
[317545358,1709851840595,-3019.63398383,0.00022998,2]
[317545360,1709851840604,-177.67761353,0.00022998,2]
[317545362,1709851840614,-155.19855138,0.00022998,2]
[317545364,1709851840623,-703.45953046,0.00022998,2]
[317545366,1709851840632,-7899.56120569,0.00022998,3]
[317545368,1709851840641,-160.0,0.00022999,2]
[317545370,1709851840650,-160.0,0.00022999,2]
[317545372,1709851840660,-1000.0,0.00023,7]
[317545374,1709851840669,-297.51480089,0.00023,3]
[317545376,1709851840679,-195306.97788613,0.00023,6]
[317545642,1709851843188,-6517.89256572,0.00023,6]
[317545971,1709851846140,-45639.24251529,0.00023,6]
[317545973,1709851846152,-58500.082704,0.00023,6]
[317553707,1709852079558,398.18358972,0.0002,5]
[317553718,1709852204942,16485.26863157,0.00027,120]
[317553734,1709852635437,154.0,0.000195,2]
[317553742,1709852818338,3419.40377748,0.000195,2]
[317553744,1709852836334,2279.60251832,0.000195,2]
[317553748,1709852856336,1899.66876526,0.000195,2]
[317553749,1709852874427,989.7274267,0.000195,2]
[317553755,1709852896343,989.7274267,0.000195,2]
[317553760,1709852918341,989.7274267,0.000195,2]
[317553764,1709852936448,989.7274267,0.000195,2]
[317553767,1709852954346,989.7274267,0.000195,2]
[317553772,1709852974472,989.7274267,0.000195,2]
[317553782,1709852992348,989.7274267,0.000195,2]
[317553789,1709853010346,989.7274267,0.000195,2]
[317553852,1709853032207,-179.6642469,0.00020894,2]
[317553854,1709853032218,-294.16990337,0.00022,2]
[317553861,1709853032349,989.7274267,0.000195,2]
[317553883,1709853038203,-1373.86523906,0.00022,2]
[317553885,1709853038212,-675.95133759,0.00022,2]
[317553886,1709853038221,-159.0,0.00022,2]
[317553888,1709853038231,-157.29568872,0.00022,2]
[317553890,1709853038240,-159.0,0.00022192,2]
[317553892,1709853038249,-950.58773464,0.00022508,3]
[317553899,1709853038316,-1148.35777884,0.00022508,3]
[317553902,1709853038327,-5000.0,0.00022509,7]
[317553905,1709853038336,-5000.0,0.00022512,7]
[317553907,1709853038346,-647.86683909,0.00022512,3]
[317553909,1709853038355,-6082.72060993,0.00022898,2]
[317553911,1709853038364,-401.762796,0.000229,2]
[317553913,1709853038373,-1308.01063199,0.000229,2]
[317553915,1709853038382,-501.57772215,0.00022975,2]
[317553916,1709853038391,-221.57290693,0.00022975,2]
[317553918,1709853038400,-1771.40506744,0.00022975,2]
[317553920,1709853038409,-163.65727951,0.00022986,3]
[317553922,1709853038418,-1000.0,0.00022986,7]
[317553924,1709853038427,-356.39919657,0.00022986,3]
[317553926,1709853038436,-1000.0,0.00022986,7]
[317553928,1709853038444,-499.51847944,0.00022986,3]
[317553930,1709853038453,-507.9177504,0.00022986,3]
[317553932,1709853038462,-15899.56192164,0.00022986,3]
[317553933,1709853038471,-215.76679509,0.00022986,2]
[317553935,1709853038480,-500.0,0.00022997,2]
[317553937,1709853038489,-500.0,0.00022997,2]
[317553939,1709853038498,-500.0,0.00022997,2]
[317553941,1709853038507,-500.0,0.00022997,2]
[317553943,1709853038516,-500.0,0.00022997,2]
[317553945,1709853038525,-326.09370847,0.00022997,2]
[317553946,1709853038534,-500.0,0.00022997,2]
[317553948,1709853038546,-500.0,0.00022997,2]
[317553950,1709853038556,-500.0,0.00022997,2]
[317553952,1709853038565,-500.0,0.00022997,2]
[317553954,1709853038574,-500.0,0.00022997,2]
[317553956,1709853038585,-297.91589401,0.00022998,2]
[317553958,1709853038595,-155.12409928,0.00022998,2]
[317553960,1709853038604,-201.55689597,0.00022998,2]
[317553961,1709853038614,-444.0566194,0.00022998,2]
[317553963,1709853038623,-206.60143057,0.00022998,2]
[317553965,1709853038633,-15440.72364066,0.00022998,2]
[317553967,1709853038642,-186.33932523,0.00022998,2]
[317553969,1709853038652,-3095.17066,0.00022998,2]
[317553971,1709853038661,-178.21335201,0.00022998,2]
[317553973,1709853038670,-157.12116013,0.00022998,2]
[317553975,1709853038679,-159.96362672,0.00022998,2]
[317553976,1709853038688,-1082.9643418,0.00022998,2]
[317553978,1709853038697,-745.22315814,0.00022998,2]
[317553980,1709853038707,-161.19048717,0.00022998,2]
[317553982,1709853038716,-682.18594777,0.00022998,2]
[317553984,1709853038725,-256.16650602,0.00022998,2]
[317553986,1709853038734,-279.09296088,0.00022998,2]
[317553988,1709853038743,-8606.87493274,0.00022998,2]
[317553990,1709853038753,-185.13888257,0.00022998,2]
[317553991,1709853038762,-365.28955153,0.00022998,2]
[317553993,1709853038772,-237.46899247,0.00022998,2]
[317553995,1709853038781,-336.65324268,0.00022998,2]
[317553997,1709853038790,-310.0372045,0.00022998,2]
[317553999,1709853038799,-194.60583292,0.00022998,2]
[317554001,1709853038809,-321.23548932,0.00022998,2]
[317554003,1709853038819,-253.77970631,0.00022998,2]
[317554005,1709853038828,-859.56464863,0.00022998,2]
[317554007,1709853038838,-211.0941941,0.00022998,2]
[317554009,1709853038846,-155.13959305,0.00022998,2]
[317554011,1709853038855,-181.65267874,0.00022998,2]
[317554012,1709853038866,-155.22950553,0.00022998,2]
[317554014,1709853038876,-245.98065434,0.00022998,2]
[317554016,1709853038885,-1794.55023703,0.00022998,2]
[317554018,1709853038894,-20570.83151564,0.00022998,2]
[317554020,1709853038903,-194.64830155,0.00022998,2]
[317554022,1709853038911,-365.28955153,0.00022998,2]
[317554024,1709853038921,-176.31919157,0.00022998,2]
[317554026,1709853038930,-898.8435044,0.00022998,2]
[317554028,1709853038939,-181.96255062,0.00022998,2]
[317554030,1709853038947,-401.64000745,0.00022998,2]
[317554032,1709853038957,-556.16853213,0.00022998,2]
[317554034,1709853038966,-223.79454694,0.00022998,2]
[317554035,1709853038975,-165.52571142,0.00022998,2]
[317554037,1709853038984,-170.98414437,0.00022998,2]
[317554039,1709853038993,-341.9319638,0.00022998,2]
[317554041,1709853039002,-528.15312328,0.00022998,2]
[317554043,1709853039012,-190.12437285,0.00022998,2]
[317554045,1709853039022,-160.80244999,0.00022998,2]
[317554047,1709853039031,-170.1848002,0.00022998,2]
[317554049,1709853039040,-178.55896063,0.00022998,2]
[317554051,1709853039049,-201.98126229,0.00022998,2]
[317554053,1709853039058,-703.45953046,0.00022998,2]
[317554055,1709853039067,-875.30218491,0.00022998,2]
[317554057,1709853039076,-189.25944553,0.00022998,2]
[317554059,1709853039085,-306.14879242,0.00022998,2]
[317554061,1709853039094,-155.35614973,0.00022998,2]
[317554062,1709853039103,-347.73817942,0.00022998,2]
[317554064,1709853039112,-1170.75169083,0.00022998,3]
[317554066,1709853039121,-15244.78488328,0.00022998,2]
[317554068,1709853039130,-1834.48436617,0.00022998,2]
[317554070,1709853039139,-272.50112793,0.00022998,2]
[317554072,1709853039148,-247.09964237,0.00022998,2]
[317554074,1709853039158,-151.0,0.00022999,2]
[317554076,1709853039167,-151.0,0.00022999,2]
[317554078,1709853039176,-151.0,0.00022999,2]
[317554080,1709853039185,-1391.2056662,0.00022999,2]
[317554082,1709853039194,-160.0,0.00022999,2]
[317554084,1709853039203,-160.0,0.00022999,2]
[317554086,1709853039212,-297.5148009,0.00023,3]
[317554087,1709853039221,-3045581.12770268,0.00023,6]
[317554693,1709853046394,-517922.8501789,0.00023,6]
[317554696,1709853046406,-1044.59452816,0.00023,6]
[317555241,1709853052343,989.7274267,0.000195,2]
[317555855,1709853070349,989.7274267,0.000195,2]
[317555856,1709853090347,511.01089788,0.000195,2]
[317555859,1709853166019,155.12565178,0.000195,2]
[317555860,1709853183930,155.12565178,0.000195,2]
[317555862,1709853203941,155.12565178,0.000195,2]
[317555863,1709853219934,155.12565178,0.000195,2]
[317555865,1709853239935,226.71330413,0.000195,2]
[317555885,1709853996506,703.64386292,0.000189,2]
[317556509,1709854238469,-179.6642469,0.00020894,2]
[317556511,1709854238479,-155.12565178,0.00020894,2]
[317556513,1709854238488,-1333.4190839,0.00021666,5]
[317556812,1709854241297,-7541.49332373,0.00021666,5]
[317556814,1709854241309,-39500.02561612,0.00021666,5]
[317556816,1709854241322,-1000.0114866,0.00021666,5]